[Event "Championnat d'Europe de Blitz"]
[Date "2024.12.09"]
[White "Sarana, Alexey"]
[Black "Korobov, Anton"]
[WhiteElo "2674"]
[BlackElo "2629"]
[Round "11.2"]
[Result "1-0"]
[TimeControl "180+2"]

1. d4 {[%emt 00:18:09] [%clk 00:03:03]} Nf6 {[%emt 00:00:01] [%clk 00:03:02]} 2.
c4 {[%clk 00:03:05]} b6 {[%clk 00:03:03]} 3. f3 {[%emt 00:00:02] [%clk
00:03:05]} Nc6 {[%emt 00:00:01] [%clk 00:03:04]} 4. Nc3 {[%emt 00:00:06] [%clk
00:03:01]} e5 {[%emt 00:00:01] [%clk 00:03:05]} 5. d5 {[%emt 00:00:01] [%clk
00:03:02]} Ne7 {[%emt 00:00:02] [%clk 00:03:06]} 6. g4 {[%emt 00:00:03] [%clk
00:03:00]} Ng6 {[%emt 00:00:29] [%clk 00:02:39]} 7. h4 {[%emt 00:00:03] [%clk
00:03:00]} h5 {[%emt 00:00:11] [%clk 00:02:29]} 8. g5 {[%emt 00:00:02] [%clk
00:03:01]} Ng8 {[%emt 00:00:01] [%clk 00:02:30]} 9. e3 {[%emt 00:00:15] [%clk
00:02:47]} Bc5 {[%emt 00:00:02] [%clk 00:02:30]} 10. Bd3 {[%emt 00:00:09] [%clk
00:02:41]} N8e7 {[%emt 00:00:08] [%clk 00:02:23]} 11. Nge2 {[%emt 00:00:19]
[%clk 00:02:24]} d6 {[%emt 00:00:04] [%clk 00:02:21]} 12. Ng3 {[%emt 00:00:05]
[%clk 00:02:21]} a6 {[%emt 00:00:27] [%clk 00:01:56]} 13. a3 {[%emt 00:00:03]
[%clk 00:02:21]} b5 {[%emt 00:00:02] [%clk 00:01:55]} 14. cxb5 {[%emt 00:00:03]
[%clk 00:02:20]} axb5 {[%emt 00:00:01] [%clk 00:01:56]} 15. Bxb5+ {[%emt
00:00:17] [%clk 00:02:05]} Bd7 {[%emt 00:00:01] [%clk 00:01:57]} 16. Bd3 {[%emt
00:00:02] [%clk 00:02:05]} Qb8 {[%emt 00:00:02] [%clk 00:01:57]} 17. Qc2 {[%emt
00:00:03] [%clk 00:02:04]} Qb7 {[%emt 00:00:12] [%clk 00:01:47]} 18. Kf2 {[%emt
00:00:05] [%clk 00:02:00]} Nf4 {[%emt 00:00:07] [%clk 00:01:43]} 19. Be4 {[%emt
00:00:04] [%clk 00:01:58]} Nfxd5 {[%emt 00:00:07] [%clk 00:01:38]} 20. b4 {[%emt
00:00:18] [%clk 00:01:43]} Bb6 {[%emt 00:00:11] [%clk 00:01:29]} 21. Nxd5 {[%emt
00:00:10] [%clk 00:01:35]} Nxd5 {[%emt 00:00:02] [%clk 00:01:29]} 22. Rd1 {[%emt
00:00:05] [%clk 00:01:32]} Nxb4 {[%emt 00:00:25] [%clk 00:01:06]} 23. axb4
{[%emt 00:00:13] [%clk 00:01:21]} Qxe4 {[%emt 00:00:11] [%clk 00:00:55]} 24.
Nxe4 {[%emt 00:00:09] [%clk 00:01:15]} Rxa1 {[%emt 00:00:02] [%clk 00:00:56]}
25. Bb2 {[%clk 00:01:16]} Ba4 {[%emt 00:00:03] [%clk 00:00:55]} 26. Nxd6+ {[%emt
00:00:14] [%clk 00:01:04]} 1-0

[Site "Europe Echecs"]

[Event "Championnat d'Europe de Blitz"]
[Date "2024.12.09"]
[White "Livaic, Leon"]
[Black "Fedoseev, Vladimir"]
[WhiteElo "2560"]
[BlackElo "2709"]
[Round "11.3"]
[Result "0-1"]
[TimeControl "180+2"]

1. d4 {[%emt 00:06:26] [%clk 00:03:02]} d5 {[%emt 00:00:03] [%clk 00:03:02]} 2.
c4 {[%emt 00:00:01] [%clk 00:03:02]} dxc4 {[%emt 00:00:02] [%clk 00:03:02]} 3.
e3 {[%emt 00:00:02] [%clk 00:03:03]} Nf6 {[%emt 00:00:01] [%clk 00:03:03]} 4.
Bxc4 {[%emt 00:00:02] [%clk 00:03:03]} e6 {[%emt 00:00:01] [%clk 00:03:04]} 5.
Nf3 {[%emt 00:00:01] [%clk 00:03:04]} c5 {[%clk 00:03:05]} 6. O-O {[%emt
00:00:02] [%clk 00:03:04]} Nc6 {[%clk 00:03:07]} 7. dxc5 {[%emt 00:00:05] [%clk
00:03:01]} Qc7 {[%emt 00:00:02] [%clk 00:03:06]} 8. b3 {[%emt 00:00:16] [%clk
00:02:48]} Bxc5 {[%emt 00:00:02] [%clk 00:03:06]} 9. Bb2 {[%emt 00:00:01] [%clk
00:02:49]} O-O {[%emt 00:00:07] [%clk 00:03:01]} 10. Nbd2 {[%emt 00:00:03] [%clk
00:02:48]} Qe7 {[%emt 00:00:17] [%clk 00:02:46]} 11. a3 {[%emt 00:00:19] [%clk
00:02:31]} b6 {[%emt 00:00:08] [%clk 00:02:40]} 12. b4 {[%emt 00:00:11] [%clk
00:02:22]} Bd6 {[%clk 00:02:41]} 13. Rc1 {[%emt 00:00:52] [%clk 00:01:33]} Bb7
{[%emt 00:00:01] [%clk 00:02:42]} 14. Bd3 {[%emt 00:00:14] [%clk 00:01:21]} Rfd8
{[%emt 00:00:07] [%clk 00:02:37]} 15. Qc2 {[%emt 00:00:01] [%clk 00:01:22]} Rac8
{[%emt 00:00:04] [%clk 00:02:35]} 16. Qb1 {[%emt 00:00:08] [%clk 00:01:17]} h6
{[%emt 00:00:58] [%clk 00:01:39]} 17. Ne4 {[%emt 00:00:01] [%clk 00:01:17]} Nxe4
{[%emt 00:00:02] [%clk 00:01:39]} 18. Bxe4 {[%clk 00:01:18]} f5 {[%emt 00:00:01]
[%clk 00:01:40]} 19. Bd3 {[%emt 00:00:08] [%clk 00:01:12]} a5 {[%emt 00:00:01]
[%clk 00:01:41]} 20. bxa5 {[%emt 00:00:17] [%clk 00:00:57]} Nxa5 {[%emt
00:00:06] [%clk 00:01:37]} 21. Rxc8 {[%emt 00:00:05] [%clk 00:00:53]} Rxc8
{[%emt 00:00:01] [%clk 00:01:38]} 22. Be2 {[%emt 00:00:13] [%clk 00:00:43]} Be4
{[%emt 00:00:04] [%clk 00:01:36]} 23. Qd1 {[%emt 00:00:20] [%clk 00:00:25]} Rc2
{[%emt 00:00:03] [%clk 00:01:35]} 24. Bd4 {[%emt 00:00:05] [%clk 00:00:22]} Qc7
{[%emt 00:00:08] [%clk 00:01:29]} 25. Bd3 {[%emt 00:00:10] [%clk 00:00:14]} Ra2
{[%emt 00:00:07] [%clk 00:01:24]} 26. Bxe4 {[%emt 00:00:06] [%clk 00:00:10]}
fxe4 {[%emt 00:00:01] [%clk 00:01:25]} 27. Nd2 {[%emt 00:00:01] [%clk 00:00:11]}
e5 {[%emt 00:00:12] [%clk 00:01:15]} 28. Ba1 {[%emt 00:00:05] [%clk 00:00:09]}
Qc6 {[%emt 00:00:36] [%clk 00:00:40]} 29. Nb3 {[%emt 00:00:01] [%clk 00:00:10]}
Nc4 {[%emt 00:00:08] [%clk 00:00:35]} 30. Qb1 {[%emt 00:00:06] [%clk 00:00:05]}
Rxa3 {[%emt 00:00:01] [%clk 00:00:35]} 31. Rc1 {[%emt 00:00:03] [%clk 00:00:05]}
Qb5 {[%emt 00:00:03] [%clk 00:00:35]} 32. Nd2 {[%emt 00:00:03] [%clk 00:00:03]}
Qxb1 {[%emt 00:00:02] [%clk 00:00:35]} 0-1

[Site "Europe Echecs"]

[Event "Championnat d'Europe de Blitz"]
[Date "2024.12.09"]
[White "Horvath, Dominik"]
[Black "Deac, Bogdan-Daniel"]
[WhiteElo "2542"]
[BlackElo "2696"]
[Round "11.4"]
[Result "0-1"]
[TimeControl "180+2"]

1. Nf3 {[%emt 00:17:54] [%clk 00:03:04]} d5 {[%clk 00:03:03]} 2. g3 {[%clk
00:03:05]} Nf6 {[%emt 00:00:05] [%clk 00:02:59]} 3. Bg2 {[%emt 00:00:01] [%clk
00:03:06]} e6 {[%emt 00:00:02] [%clk 00:03:00]} 4. O-O {[%emt 00:00:05] [%clk
00:03:02]} Be7 {[%emt 00:00:02] [%clk 00:03:00]} 5. c4 {[%emt 00:00:02] [%clk
00:03:02]} O-O {[%emt 00:00:02] [%clk 00:03:00]} 6. d3 {[%clk 00:03:03]} Nc6
{[%emt 00:00:03] [%clk 00:02:59]} 7. a3 {[%emt 00:00:01] [%clk 00:03:03]} dxc4
{[%emt 00:00:21] [%clk 00:02:41]} 8. dxc4 {[%emt 00:00:01] [%clk 00:03:03]} e5
{[%emt 00:00:03] [%clk 00:02:41]} 9. Nc3 {[%clk 00:03:04]} Be6 {[%emt 00:00:07]
[%clk 00:02:36]} 10. Qb3 {[%clk 00:03:06]} Na5 {[%emt 00:01:21] [%clk 00:01:18]}
11. Qc2 {[%emt 00:00:01] [%clk 00:03:06]} Qc8 {[%emt 00:00:36] [%clk 00:00:43]}
12. Nxe5 {[%emt 00:00:09] [%clk 00:03:00]} Nxc4 {[%emt 00:00:05] [%clk
00:00:40]} 13. Nxc4 {[%emt 00:00:05] [%clk 00:02:57]} Bxc4 {[%emt 00:00:02]
[%clk 00:00:41]} 14. Bf4 {[%emt 00:00:04] [%clk 00:02:54]} c6 {[%emt 00:00:04]
[%clk 00:00:40]} 15. Rac1 {[%emt 00:00:12] [%clk 00:02:43]} Rd8 {[%emt 00:00:15]
[%clk 00:00:26]} 16. Ne4 {[%emt 00:00:07] [%clk 00:02:39]} Be6 {[%emt 00:00:08]
[%clk 00:00:20]} 17. Nxf6+ {[%emt 00:00:07] [%clk 00:02:34]} Bxf6 {[%emt
00:00:01] [%clk 00:00:21]} 18. b4 {[%emt 00:00:04] [%clk 00:02:32]} a6 {[%emt
00:00:02] [%clk 00:00:21]} 19. Rfd1 {[%emt 00:00:02] [%clk 00:02:32]} Rxd1+
{[%emt 00:00:04] [%clk 00:00:19]} 20. Rxd1 {[%emt 00:00:02] [%clk 00:02:33]} Qe8
{[%emt 00:00:02] [%clk 00:00:18]} 21. Bf3 {[%emt 00:00:06] [%clk 00:02:29]} Rd8
{[%emt 00:00:03] [%clk 00:00:17]} 22. Be3 {[%emt 00:00:30] [%clk 00:02:01]} Be7
{[%emt 00:00:06] [%clk 00:00:12]} 23. Bb6 {[%emt 00:00:04] [%clk 00:02:00]}
Rxd1+ {[%emt 00:00:02] [%clk 00:00:12]} 24. Qxd1 {[%clk 00:02:01]} Qf8 {[%emt
00:00:06] [%clk 00:00:08]} 25. Kg2 {[%emt 00:00:05] [%clk 00:01:58]} Qc8 {[%emt
00:00:03] [%clk 00:00:06]} 26. h4 {[%emt 00:00:02] [%clk 00:01:58]} h6 {[%emt
00:00:02] [%clk 00:00:07]} 27. Qd3 {[%emt 00:00:02] [%clk 00:01:59]} Qf8 {[%emt
00:00:03] [%clk 00:00:06]} 28. Be3 {[%emt 00:00:03] [%clk 00:01:57]} Qd8 {[%emt
00:00:03] [%clk 00:00:05]} 29. Qc2 {[%emt 00:00:08] [%clk 00:01:51]} a5 {[%emt
00:00:02] [%clk 00:00:05]} 30. Bc5 {[%emt 00:00:05] [%clk 00:01:48]} axb4 {[%emt
00:00:01] [%clk 00:00:06]} 31. axb4 {[%emt 00:00:01] [%clk 00:01:49]} Qf8 {[%emt
00:00:03] [%clk 00:00:06]} 32. Qc3 {[%emt 00:00:06] [%clk 00:01:45]} Qd8 {[%emt
00:00:01] [%clk 00:00:06]} 33. Qc2 {[%emt 00:00:01] [%clk 00:01:45]} Bf8 {[%emt
00:00:02] [%clk 00:00:07]} 34. Qc3 {[%emt 00:00:06] [%clk 00:01:41]} Bd5 {[%emt
00:00:03] [%clk 00:00:06]} 35. Bxf8 {[%emt 00:00:04] [%clk 00:01:39]} Bxf3+
{[%emt 00:00:02] [%clk 00:00:06]} 36. Qxf3 {[%emt 00:00:02] [%clk 00:01:39]}
Qxf8 {[%emt 00:00:02] [%clk 00:00:07]} 37. Qc3 {[%clk 00:01:40]} Qe7 {[%emt
00:00:01] [%clk 00:00:07]} 38. e3 {[%emt 00:00:02] [%clk 00:01:40]} Qe4+ {[%emt
00:00:01] [%clk 00:00:07]} 39. Kg1 {[%emt 00:00:01] [%clk 00:01:41]} Qd5 {[%emt
00:00:04] [%clk 00:00:06]} 40. Qc2 {[%emt 00:00:05] [%clk 00:01:39]} b6 {[%emt
00:00:01] [%clk 00:00:06]} 41. Qc3 {[%emt 00:00:05] [%clk 00:01:36]} c5 {[%emt
00:00:01] [%clk 00:00:07]} 42. bxc5 {[%emt 00:00:01] [%clk 00:01:38]} bxc5
{[%clk 00:00:08]} 43. Kf1 {[%emt 00:00:06] [%clk 00:01:33]} h5 {[%emt 00:00:03]
[%clk 00:00:07]} 44. Ke2 {[%emt 00:00:01] [%clk 00:01:34]} g6 {[%emt 00:00:02]
[%clk 00:00:08]} 45. Qd3 {[%emt 00:00:08] [%clk 00:01:28]} Qa2+ {[%emt 00:00:01]
[%clk 00:00:08]} 46. Qd2 {[%emt 00:00:03] [%clk 00:01:28]} Qa6+ {[%emt 00:00:01]
[%clk 00:00:08]} 47. Qd3 {[%emt 00:00:02] [%clk 00:01:28]} Qc6 {[%emt 00:00:03]
[%clk 00:00:07]} 48. Qc4 {[%emt 00:00:03] [%clk 00:01:28]} Kf8 {[%emt 00:00:02]
[%clk 00:00:08]} 49. e4 {[%emt 00:00:04] [%clk 00:01:26]} Qb6 {[%emt 00:00:02]
[%clk 00:00:08]} 50. Ke3 {[%emt 00:00:05] [%clk 00:01:23]} Qa5 {[%emt 00:00:02]
[%clk 00:00:07]} 51. Ke2 {[%emt 00:00:11] [%clk 00:01:14]} Ke7 {[%emt 00:00:02]
[%clk 00:00:07]} 52. Qd5 {[%emt 00:00:04] [%clk 00:01:12]} Qc3 {[%emt 00:00:01]
[%clk 00:00:08]} 53. Qb7+ {[%emt 00:00:03] [%clk 00:01:12]} Kf6 {[%emt 00:00:03]
[%clk 00:00:07]} 54. Qc6+ {[%clk 00:01:12]} Kg7 {[%emt 00:00:01] [%clk
00:00:07]} 55. Qd5 {[%emt 00:00:07] [%clk 00:01:08]} Qc2+ {[%emt 00:00:02] [%clk
00:00:07]} 56. Ke3 {[%emt 00:00:02] [%clk 00:01:09]} Qc3+ {[%emt 00:00:02] [%clk
00:00:07]} 57. Ke2 {[%clk 00:01:10]} c4 {[%emt 00:00:03] [%clk 00:00:06]} 58. e5
{[%emt 00:00:01] [%clk 00:01:11]} Qb2+ {[%emt 00:00:02] [%clk 00:00:06]} 59. Kf3
{[%emt 00:00:09] [%clk 00:01:05]} c3 {[%emt 00:00:03] [%clk 00:00:05]} 60. e6
{[%clk 00:01:06]} c2 {[%emt 00:00:01] [%clk 00:00:05]} 61. e7 {[%emt 00:00:01]
[%clk 00:01:07]} c1=Q {[%emt 00:00:03] [%clk 00:00:04]} 0-1

[Site "Europe Echecs"]

[Event "Championnat d'Europe de Blitz"]
[Date "2024.12.09"]
[White "Santos Latasa, Jaime"]
[Black "Muradli, Mahammad"]
[WhiteElo "2628"]
[BlackElo "2588"]
[Round "11.5"]
[Result "1/2-1/2"]
[TimeControl "180+2"]

1. Nf3 {[%emt 00:18:28] [%clk 00:03:03]} c5 {[%emt 00:00:04] [%clk 00:03:01]} 2.
c4 {[%emt 00:00:04] [%clk 00:03:01]} Nc6 {[%emt 00:00:12] [%clk 00:02:52]} 3. d4
{[%emt 00:00:07] [%clk 00:02:55]} cxd4 {[%emt 00:00:03] [%clk 00:02:51]} 4. Nxd4
{[%emt 00:00:01] [%clk 00:02:56]} Nf6 {[%emt 00:00:22] [%clk 00:02:30]} 5. Nc3
{[%clk 00:02:58]} e6 {[%emt 00:00:02] [%clk 00:02:31]} 6. e4 {[%emt 00:00:07]
[%clk 00:02:53]} Bb4 {[%emt 00:00:13] [%clk 00:02:20]} 7. Nxc6 {[%emt 00:00:02]
[%clk 00:02:53]} dxc6 {[%emt 00:00:13] [%clk 00:02:09]} 8. Qxd8+ {[%emt
00:00:06] [%clk 00:02:49]} Kxd8 {[%emt 00:00:01] [%clk 00:02:10]} 9. e5 {[%emt
00:00:02] [%clk 00:02:49]} Nd7 {[%emt 00:00:10] [%clk 00:02:02]} 10. Bf4 {[%emt
00:00:02] [%clk 00:02:49]} Bxc3+ {[%emt 00:00:37] [%clk 00:01:27]} 11. bxc3
{[%emt 00:00:01] [%clk 00:02:50]} b6 {[%clk 00:01:29]} 12. h4 {[%emt 00:00:03]
[%clk 00:02:48]} Ba6 {[%emt 00:00:08] [%clk 00:01:24]} 13. h5 {[%emt 00:00:06]
[%clk 00:02:43]} h6 {[%emt 00:00:52] [%clk 00:00:34]} 14. Rh3 {[%emt 00:00:01]
[%clk 00:02:44]} Ke7 {[%emt 00:00:02] [%clk 00:00:34]} 15. Rg3 {[%emt 00:00:17]
[%clk 00:02:29]} Rhg8 {[%emt 00:00:10] [%clk 00:00:26]} 16. Rd1 {[%emt 00:00:07]
[%clk 00:02:23]} Rad8 {[%emt 00:00:07] [%clk 00:00:22]} 17. Be2 {[%emt 00:00:18]
[%clk 00:02:06]} f6 {[%emt 00:00:12] [%clk 00:00:13]} 18. exf6+ {[%emt 00:00:08]
[%clk 00:02:00]} Nxf6 {[%clk 00:00:15]} 19. Rxd8 {[%emt 00:00:12] [%clk
00:01:50]} Kxd8 {[%clk 00:00:16]} 20. Be5 {[%emt 00:00:14] [%clk 00:01:38]} Ke7
{[%emt 00:00:04] [%clk 00:00:14]} 21. Rg6 {[%emt 00:00:04] [%clk 00:01:36]} Ne8
{[%emt 00:00:11] [%clk 00:00:06]} 22. g4 {[%emt 00:00:40] [%clk 00:00:57]} c5
{[%clk 00:00:07]} 23. f4 {[%emt 00:00:26] [%clk 00:00:33]} Kf7 {[%emt 00:00:01]
[%clk 00:00:09]} 24. g5 {[%emt 00:00:12] [%clk 00:00:22]} hxg5 {[%emt 00:00:02]
[%clk 00:00:10]} 25. Rxg5 {[%clk 00:00:23]} Rh8 {[%emt 00:00:08] [%clk
00:00:04]} 26. Bd3 {[%emt 00:00:04] [%clk 00:00:21]} Nf6 {[%emt 00:00:01] [%clk
00:00:06]} 27. Bg6+ {[%emt 00:00:05] [%clk 00:00:17]} Kf8 {[%clk 00:00:06]} 28.
Bd6+ {[%emt 00:00:02] [%clk 00:00:18]} Kg8 {[%clk 00:00:08]} 29. Re5 {[%emt
00:00:09] [%clk 00:00:10]} Bxc4 {[%emt 00:00:01] [%clk 00:00:09]} 30. f5 {[%clk
00:00:11]} exf5 {[%emt 00:00:06] [%clk 00:00:06]} 31. Re7 {[%clk 00:00:12]} Rxh5
{[%emt 00:00:05] [%clk 00:00:03]} 32. Bxh5 {[%clk 00:00:13]} Nxh5 {[%clk
00:00:05]} 33. Rxa7 {[%emt 00:00:02] [%clk 00:00:14]} Nf6 {[%emt 00:00:01] [%clk
00:00:06]} 34. Be5 {[%emt 00:00:01] [%clk 00:00:14]} Nd5 {[%emt 00:00:04] [%clk
00:00:05]} 35. Rxg7+ {[%emt 00:00:02] [%clk 00:00:13]} Kf8 {[%clk 00:00:07]} 36.
Ra7 {[%emt 00:00:01] [%clk 00:00:13]} Ke8 {[%emt 00:00:03] [%clk 00:00:06]} 37.
a3 {[%emt 00:00:03] [%clk 00:00:13]} Bd3 {[%clk 00:00:07]} 38. Kd2 {[%emt
00:00:02] [%clk 00:00:12]} Bc4 {[%emt 00:00:01] [%clk 00:00:08]} 39. a4 {[%emt
00:00:03] [%clk 00:00:12]} f4 {[%emt 00:00:04] [%clk 00:00:05]} 40. a5 {[%emt
00:00:03] [%clk 00:00:11]} bxa5 {[%emt 00:00:04] [%clk 00:00:03]} 41. Rxa5
{[%clk 00:00:12]} f3 {[%clk 00:00:05]} 42. Ke1 {[%emt 00:00:02] [%clk 00:00:12]}
Ne3 {[%emt 00:00:03] [%clk 00:00:04]} 43. Rxc5 {[%emt 00:00:02] [%clk 00:00:12]}
Ng4 {[%emt 00:00:03] [%clk 00:00:03]} 44. Bd4 {[%emt 00:00:04] [%clk 00:00:10]}
Bd3 {[%emt 00:00:01] [%clk 00:00:04]} 45. Rg5 {[%emt 00:00:02] [%clk 00:00:10]}
Nh6 {[%emt 00:00:02] [%clk 00:00:04]} 46. Kf2 {[%emt 00:00:02] [%clk 00:00:10]}
Be2 {[%emt 00:00:02] [%clk 00:00:04]} 47. Bg7 {[%emt 00:00:04] [%clk 00:00:08]}
Nf7 {[%emt 00:00:02]} 48. Rd5 {[%clk 00:00:09]} Ke7 {[%clk 00:00:06]} 49. Bd4
{[%emt 00:00:03] [%clk 00:00:08]} Ke6 {[%emt 00:00:01] [%clk 00:00:07]} 50. Ra5
{[%emt 00:00:01] [%clk 00:00:08]} Nd6 {[%emt 00:00:01] [%clk 00:00:08]} 51. Re5+
{[%emt 00:00:05] [%clk 00:00:06]} Kd7 {[%emt 00:00:01] [%clk 00:00:10]} 52. Bc5
{[%emt 00:00:02] [%clk 00:00:06]} Nc4 {[%clk 00:00:11]} 53. Re4 {[%emt 00:00:03]
[%clk 00:00:04]} Kc6 {[%emt 00:00:02] [%clk 00:00:11]} 54. Bb4 {[%emt 00:00:01]
[%clk 00:00:05]} Kb5 {[%emt 00:00:05] [%clk 00:00:08]} 55. Rxe2 {[%emt 00:00:03]
[%clk 00:00:05]} fxe2 {[%emt 00:00:01] [%clk 00:00:08]} 1/2-1/2

[Site "Europe Echecs"]

[Event "Championnat d'Europe de Blitz"]
[Date "2024.12.09"]
[White "Pantsulaia, Levan"]
[Black "Pichot, Alan"]
[WhiteElo "2522"]
[BlackElo "2637"]
[Round "11.6"]
[Result "0-1"]
[TimeControl "180+2"]

1. Nf3 {[%emt 00:18:22] [%clk 00:03:03]} Nf6 {[%emt 00:00:02] [%clk 00:03:03]}
2. g3 {[%clk 00:03:04]} d5 {[%emt 00:00:01] [%clk 00:03:03]} 3. Bg2 {[%emt
00:00:01] [%clk 00:03:05]} e6 {[%emt 00:00:02] [%clk 00:03:04]} 4. O-O {[%emt
00:00:01] [%clk 00:03:05]} Be7 {[%emt 00:00:02] [%clk 00:03:05]} 5. c4 {[%emt
00:00:01] [%clk 00:03:05]} O-O {[%emt 00:00:02] [%clk 00:03:05]} 6. b3 {[%emt
00:00:01] [%clk 00:03:06]} d4 {[%emt 00:00:02] [%clk 00:03:05]} 7. e3 {[%emt
00:00:01] [%clk 00:03:07]} c5 {[%clk 00:03:06]} 8. exd4 {[%emt 00:00:01] [%clk
00:03:08]} cxd4 {[%clk 00:03:07]} 9. Ne5 {[%emt 00:00:01] [%clk 00:03:09]} Qc7
{[%emt 00:00:05] [%clk 00:03:04]} 10. Re1 {[%emt 00:00:01] [%clk 00:03:10]} Nbd7
{[%emt 00:00:02] [%clk 00:03:04]} 11. Nd3 {[%emt 00:00:05] [%clk 00:03:07]} Nc5
{[%emt 00:00:43] [%clk 00:02:23]} 12. Nxc5 {[%emt 00:00:03] [%clk 00:03:06]}
Bxc5 {[%emt 00:00:01] [%clk 00:02:25]} 13. d3 {[%emt 00:00:38] [%clk 00:02:29]}
e5 {[%emt 00:00:03] [%clk 00:02:23]} 14. Ba3 {[%emt 00:00:03] [%clk 00:02:29]}
Rb8 {[%emt 00:00:14] [%clk 00:02:12]} 15. Bxc5 {[%emt 00:00:06] [%clk 00:02:25]}
Qxc5 {[%emt 00:00:01] [%clk 00:02:12]} 16. a3 {[%emt 00:00:01] [%clk 00:02:26]}
Bf5 {[%emt 00:00:08] [%clk 00:02:07]} 17. b4 {[%emt 00:00:01] [%clk 00:02:27]}
Qc7 {[%emt 00:00:02] [%clk 00:02:07]} 18. Qb3 {[%emt 00:00:05] [%clk 00:02:24]}
b6 {[%emt 00:00:45] [%clk 00:01:24]} 19. Nd2 {[%emt 00:00:02] [%clk 00:02:24]}
Rfe8 {[%emt 00:00:01] [%clk 00:01:25]} 20. Rac1 {[%emt 00:00:09] [%clk
00:02:17]} h6 {[%emt 00:00:01] [%clk 00:01:25]} 21. Bf1 {[%emt 00:00:51] [%clk
00:01:28]} Nd7 {[%emt 00:00:05] [%clk 00:01:22]} 22. Ne4 {[%emt 00:00:04] [%clk
00:01:26]} Be6 {[%emt 00:00:08] [%clk 00:01:16]} 23. Bg2 {[%emt 00:00:02] [%clk
00:01:27]} f5 {[%emt 00:00:02] [%clk 00:01:16]} 24. Nd2 {[%emt 00:00:01] [%clk
00:01:28]} Nf6 {[%clk 00:01:17]} 25. Qa4 {[%emt 00:00:16] [%clk 00:01:14]} Bf7
{[%emt 00:00:03] [%clk 00:01:15]} 26. Qb5 {[%emt 00:00:21] [%clk 00:00:55]} Re7
{[%emt 00:00:35] [%clk 00:00:42]} 27. c5 {[%emt 00:00:01] [%clk 00:00:56]} bxc5
{[%emt 00:00:04] [%clk 00:00:41]} 28. Qxc5 {[%emt 00:00:01] [%clk 00:00:57]}
Qxc5 {[%emt 00:00:01] [%clk 00:00:41]} 29. Rxc5 {[%emt 00:00:01] [%clk
00:00:58]} Rbe8 {[%emt 00:00:02] [%clk 00:00:42]} 30. Bc6 {[%emt 00:00:01] [%clk
00:00:59]} Rc8 {[%emt 00:00:01] [%clk 00:00:42]} 31. b5 {[%emt 00:00:10] [%clk
00:00:51]} Nd7 {[%emt 00:00:12] [%clk 00:00:33]} 32. Rcc1 {[%emt 00:00:05] [%clk
00:00:47]} Nb8 {[%emt 00:00:08] [%clk 00:00:28]} 33. Bg2 {[%emt 00:00:10] [%clk
00:00:39]} Rc3 {[%emt 00:00:10] [%clk 00:00:20]} 34. Rxc3 {[%emt 00:00:12] [%clk
00:00:29]} dxc3 {[%emt 00:00:01] [%clk 00:00:21]} 35. Nc4 {[%clk 00:00:30]} e4
{[%emt 00:00:04] [%clk 00:00:19]} 36. Bf1 {[%emt 00:00:21] [%clk 00:00:11]} exd3
{[%emt 00:00:03] [%clk 00:00:19]} 37. Rxe7 {[%clk 00:00:12]} c2 {[%clk
00:00:20]} 38. Rxf7 {[%emt 00:00:08] [%clk 00:00:07]} c1=Q {[%emt 00:00:05]
[%clk 00:00:17]} 39. Rb7 {[%emt 00:00:04] [%clk 00:00:05]} Qxc4 {[%emt 00:00:03]
[%clk 00:00:15]} 40. Rxb8+ {[%clk 00:00:06]} Kf7 {[%emt 00:00:05] [%clk
00:00:13]} 41. Rd8 {[%emt 00:00:02] [%clk 00:00:05]} Qxb5 {[%emt 00:00:02] [%clk
00:00:13]} 42. Rxd3 {[%emt 00:00:02] [%clk 00:00:05]} Qc5 {[%emt 00:00:02] [%clk
00:00:13]} 43. Rb3 {[%emt 00:00:04] [%clk 00:00:04]} a5 {[%emt 00:00:01] [%clk
00:00:13]} 44. a4 {[%emt 00:00:02] [%clk 00:00:05]} Kf6 {[%emt 00:00:02] [%clk
00:00:13]} 45. Bb5 {[%emt 00:00:03] [%clk 00:00:04]} Qd4 {[%emt 00:00:01] [%clk
00:00:14]} 46. Rd3 {[%emt 00:00:01] [%clk 00:00:05]} Qe5 {[%emt 00:00:02] [%clk
00:00:14]} 47. Kg2 {[%emt 00:00:02] [%clk 00:00:04]} g5 {[%clk 00:00:15]} 48. h3
{[%emt 00:00:01] [%clk 00:00:06]} h5 {[%emt 00:00:01] [%clk 00:00:16]} 49. Re3
{[%emt 00:00:01] [%clk 00:00:07]} Qd5+ {[%clk 00:00:17]} 50. Kg1 {[%clk
00:00:08]} f4 {[%emt 00:00:01] [%clk 00:00:17]} 51. gxf4 {[%emt 00:00:01] [%clk
00:00:09]} gxf4 {[%emt 00:00:01] [%clk 00:00:18]} 52. Rd3 {[%emt 00:00:01] [%clk
00:00:10]} Qe4 {[%emt 00:00:03] [%clk 00:00:17]} 53. Kh2 {[%emt 00:00:05] [%clk
00:00:07]} f3 {[%emt 00:00:03] [%clk 00:00:16]} 54. Re3 {[%emt 00:00:06] [%clk
00:00:04]} Qf4+ {[%clk 00:00:17]} 55. Kh1 {[%emt 00:00:01] [%clk 00:00:05]} Kg5
{[%emt 00:00:07] [%clk 00:00:13]} 56. Bc6 {[%emt 00:00:01] [%clk 00:00:05]} Qc4
{[%emt 00:00:04] [%clk 00:00:11]} 57. Bb5 {[%emt 00:00:04] [%clk 00:00:04]} Qc1+
{[%emt 00:00:05] [%clk 00:00:07]} 58. Kh2 {[%clk 00:00:06]} Kf4 {[%clk
00:00:09]} 59. Rd3 {[%emt 00:00:04] [%clk 00:00:04]} Qc2 {[%emt 00:00:02] [%clk
00:00:09]} 60. Rd4+ {[%emt 00:00:03] [%clk 00:00:03]} Ke5 {[%clk 00:00:10]} 0-1

[Site "Europe Echecs"]